bitfinex/quotes_ETHUSD_20250803
["timestamp","ask_amount","ask_price","bid_price","bid_amount"]
[1754230910071,40.0,3482.3,3481.7,4.756]
[1754230910382,30.0,3482.3,3481.8,4.753]
[1754230910747,0.4703,3482.2,3481.8,4.753]
[1754230910949,3.0,3482.0,3481.8,4.753]
[1754230911248,0.4703,3482.2,3481.8,4.753]
[1754230911460,3.0,3482.0,3481.8,4.753]
[1754230911781,40.0,3482.3,3481.9,4.746]
[1754230912085,0.4703,3482.2,3481.9,4.746]
[1754230912456,3.0,3482.0,3481.5,0.4955]
[1754230912651,3.0,3482.0,3481.6,4.744]
[1754230912847,30.0,3482.5,3481.7,0.9578]
[1754230913048,0.001,3482.6,3481.7,1.52798]
[1754230913247,0.001,3482.6,3481.8,0.9578]
[1754230913774,0.001,3482.6,3481.7,0.57018]
[1754230913775,0.001,3482.6,3481.9,0.9578]
[1754230913965,0.001,3482.6,3482.0,6.54730703]
[1754230914280,0.001,3482.6,3482.0,5.6978]
[1754230914579,0.001,3482.6,3482.1,1.101]
[1754230915113,0.001,3482.6,3482.2,0.9578]
[1754230915474,0.4713,3482.6,3482.3,4.736]
[1754230915784,0.001,3482.6,3482.4,4.736]
[1754230915998,0.4703,3482.5,3481.7,0.4623]
[1754230916309,30.0,3482.5,3481.8,4.736]
[1754230916603,30.0,3482.4,3481.6,0.4955]
[1754230916785,30.0,3482.4,3481.9,4.735]
[1754230916983,0.4703,3482.3,3481.9,4.735]
[1754230917411,30.0,3482.5,3481.9,4.735]
[1754230918799,0.4713,3482.6,3481.9,4.735]
[1754230918800,0.001,3482.6,3482.0,0.9081]
[1754230919000,0.001,3482.6,3482.1,0.56431]
[1754230919325,0.001,3482.6,3482.1,1.03231]
[1754230919510,0.001,3482.6,3482.1,0.56431]
[1754230919712,0.001,3482.6,3482.1,1.00441]
[1754230919912,0.001,3482.6,3482.1,1.47241]
[1754230920426,0.001,3482.6,3482.2,4.728]
[1754230920629,30.0,3482.5,3481.8,0.468]
[1754230920931,30.0,3482.4,3481.4,0.468]
[1754230921088,33.0,3482.3,3481.5,4.725]
[1754230921293,30.0,3482.1,3481.5,4.725]
[1754230921527,30.0,3482.3,3481.5,4.725]
[1754230922040,30.0,3482.3,3481.3,0.4401]
[1754230922321,30.0,3482.1,3481.6,4.724]
[1754230922467,0.001,3482.6,3481.7,0.9368216]
[1754230922764,0.001,3482.6,3481.8,4.866]
[1754230923132,0.001,3482.6,3481.9,0.93681995]
[1754230923332,0.001,3482.6,3482.1,0.1432]
[1754230923831,0.001,3482.6,3482.2,0.9081]
[1754230924165,0.001,3482.6,3482.3,4.724]
[1754230924350,0.001,3482.6,3482.3,5.6321]
[1754230924667,0.001,3482.6,3482.4,0.9081]
[1754230925570,0.001,3482.6,3482.5,4.718]
[1754230925871,0.001,3482.6,3482.5,5.6261]
[1754230926074,0.8884,3482.6,3482.1,0.1432]
[1754230926276,0.59854,3482.6,3482.1,0.1432]
[1754230926476,0.59854,3482.6,3479.9,16.54509029]
[1754230926477,30.0,3482.4,3479.9,16.54509029]
[1754230926691,0.001,3482.6,3479.7,0.57238]
[1754230926692,40.0,3482.2,3480.6,0.4401]
[1754230926854,30.0,3482.2,3480.7,4.736]
[1754230927174,40.0,3482.0,3480.7,4.736]
[1754230927374,30.0,3481.9,3480.8,0.57881]
[1754230927677,30.0,3481.8,3480.9,4.736]
[1754230927879,30.0,3481.8,3480.9,5.1761]
[1754230928045,30.0,3482.2,3481.0,0.468]
[1754230928442,30.0,3482.2,3481.1,4.734]
[1754230928642,30.0,3482.2,3481.1,5.31261]
[1754230928901,40.0,3482.0,3481.1,0.57861]
[1754230929191,0.8874,3481.9,3481.2,4.733]
[1754230929699,0.4536,3481.9,3481.3,4.732]
[1754230930198,30.4536,3482.2,3481.3,4.732]
[1754230930483,30.0,3482.0,3481.3,4.732]
[1754230930946,2.86824707,3482.1,3481.3,4.732]
[1754230931146,30.0,3482.1,3481.3,4.732]
[1754230931704,30.0,3482.1,3481.1,0.4401]
[1754230931997,30.0,3482.1,3481.4,4.726]
[1754230932288,30.0,3482.1,3481.5,4.724]
[1754230932846,30.0,3482.1,3481.1,0.4401]
[1754230933041,40.0,3481.9,3481.2,4.721]
[1754230933258,0.4536,3481.8,3481.2,4.721]
[1754230933482,30.0,3481.7,3481.2,4.721]
[1754230933881,0.8874,3481.6,3481.3,3.401]
[1754230934086,0.4338,3481.6,3481.3,3.401]
[1754230934381,0.4536,3481.5,3481.3,3.401]
[1754230934982,0.4536,3481.5,3481.3,3.0]
[1754230935187,0.4536,3481.5,3481.4,4.715]
[1754230935384,0.4536,3481.5,3480.9,3.401]
[1754230935585,30.0,3481.4,3480.8,3.0]
[1754230935909,30.0,3481.2,3480.4,3.401]
[1754230936215,30.0,3481.2,3481.0,3.0]
[1754230936523,0.4536,3481.1,3481.0,3.0]
[1754230936810,0.4536,3481.1,3480.3,4.19691]
[1754230936811,0.4536,3481.1,3480.5,3.0]
[1754230937013,0.4536,3481.1,3480.7,3.0]
[1754230937181,10.0,3482.1,3480.7,4.1113]
[1754230937380,30.0,3481.7,3480.8,0.468]
[1754230937693,0.4536,3481.8,3481.0,3.0]
[1754230937880,30.0,3482.0,3481.0,3.468]
[1754230938071,30.0,3481.9,3481.0,3.468]
[1754230938776,0.4536,3482.1,3481.0,0.468]
[1754230938975,0.4536,3482.1,3481.1,0.4401]
[1754230940410,0.4536,3482.2,3481.1,0.4401]
[1754230940578,30.0,3482.1,3481.1,0.4401]
[1754230941124,30.0,3482.0,3480.8,0.144]
[1754230941326,40.0,3481.8,3481.2,4.702]
[1754230941511,0.4536,3481.7,3480.6,0.5841]
[1754230941821,30.0,3481.6,3480.7,8.1]
[1754230942128,0.4536,3481.5,3480.7,8.1]
[1754230942423,0.4536,3481.8,3480.8,3.401]
[1754230942609,30.0,3481.7,3480.9,3.401]
[1754230942817,30.0,3481.7,3481.0,3.401]
[1754230943119,3.0,3481.6,3481.1,3.401]
[1754230943321,30.0,3481.5,3481.1,3.401]
[1754230943528,0.4536,3481.5,3481.1,3.401]
[1754230943689,0.4536,3481.5,3481.0,3.401]
[1754230944233,3.0,3481.8,3481.1,4.3091]
[1754230944408,0.4536,3481.9,3481.2,3.401]
[1754230944936,30.0,3481.6,3481.2,8.096]
[1754230945090,0.8874,3481.5,3481.2,8.096]
[1754230945287,30.4536,3481.4,3481.2,3.401]
[1754230945529,0.4536,3481.4,3481.1,4.694]
[1754230945910,30.0,3482.3,3481.2,0.9081]
[1754230946114,3.0,3482.0,3481.3,3.401]
[1754230946319,1.10219626,3482.3,3481.3,3.869]
[1754230946612,0.4536,3482.1,3481.3,3.869]
[1754230946817,3.0,3482.2,3481.3,0.468]
[1754230947127,40.0,3481.9,3481.3,0.468]
[1754230947327,0.8874,3482.4,3481.3,1.04261]
[1754230947509,3.0,3482.2,3481.0,0.144]
[1754230947716,30.4536,3482.3,3481.4,4.69]
[1754230947717,0.4536,3482.1,3481.4,4.69]
[1754230947912,0.4536,3482.1,3481.5,4.688]
[1754230948628,0.4536,3482.1,3481.6,4.686]
[1754230948833,0.47,3482.0,3481.7,4.686]
[1754230949395,0.47,3481.9,3481.1,0.4594]
[1754230949631,0.47,3481.9,3481.2,4.685]
[1754230951544,0.47,3481.9,3481.1,0.4594]
[1754230951716,0.47,3481.9,3481.3,4.683]
[1754230952237,3.0,3482.0,3481.3,4.683]
[1754230952740,3.0,3482.0,3481.3,5.1347]
[1754230952938,0.001,3482.6,3481.4,0.97287]
[1754230953238,0.001,3482.6,3481.5,0.9111]
[1754230953841,0.001,3482.6,3481.4,0.51347]
[1754230953842,0.001,3482.6,3481.6,0.9111]
[1754230954136,0.001,3482.6,3481.7,4.673]
[1754230954519,0.001,3482.6,3481.7,5.1324]
[1754230954841,0.001,3482.6,3481.8,0.9111]
[1754230955458,0.001,3482.6,3481.8,0.4517]
[1754230955606,0.001,3482.2,3481.9,0.9111]
[1754230955806,0.001,3482.2,3481.7,5.23141]
[1754230956037,0.001,3482.2,3482.0,0.9111]
[1754230956408,0.001,3482.2,3481.7,5.23141]
[1754230956613,0.001,3482.2,3482.1,0.9111]
[1754230956809,0.001,3482.2,3481.5,0.144]
[1754230957027,3.0,3482.0,3481.2,4.665]
[1754230957226,40.0,3481.7,3481.2,4.665]
[1754230957417,30.0,3481.5,3481.2,4.665]
[1754230959211,3.0,3481.9,3481.3,0.9111]
[1754230959411,3.0,3481.9,3480.1,6.908]
[1754230959412,0.55,3481.6,3480.1,6.908]
[1754230959615,3.0,3481.3,3480.2,5.1334]
[1754230959949,40.0,3481.0,3480.2,6.38271]
[1754230960158,30.0,3481.0,3480.2,6.38271]
[1754230960734,30.0,3481.1,3480.2,6.38271]
[1754230960937,30.0,3481.1,3480.3,4.674]
[1754230961557,30.0,3480.9,3480.4,4.674]
[1754230962229,30.0,3480.9,3480.4,5.1334]
[1754230962629,30.0,3480.9,3480.1,7.3597]
[1754230962844,30.0,3480.9,3480.2,4.669]
[1754230964869,3.33824707,3480.9,3480.3,4.669]
[1754230965018,0.47,3480.9,3480.3,4.669]
[1754230965224,0.9174,3480.8,3479.4,3.8604]
[1754230965447,3.55,3480.6,3478.9,0.9111]
[1754230965616,30.9174,3480.5,3479.0,4.667]
[1754230965821,40.0,3480.3,3479.1,3.0]
[1754230966041,30.0,3480.3,3479.2,0.84061223]
[1754230966361,30.0,3480.3,3479.3,0.4594]
[1754230966854,30.0,3480.3,3479.4,0.4517]
[1754230967054,30.0,3480.5,3479.5,5.1264]
[1754230967260,30.0,3480.4,3479.5,5.1264]
[1754230968337,0.9174,3480.3,3479.3,4.667]
[1754230968655,30.0,3480.1,3479.3,4.667]
[1754230968833,30.0,3480.0,3479.3,4.667]
[1754230969047,0.9174,3480.0,3479.3,4.667]
[1754230969377,30.0,3479.8,3479.4,4.67]
[1754230969679,0.47,3479.7,3479.4,4.67]
[1754230969900,0.4474,3480.0,3479.4,4.67]
[1754230970170,30.0,3480.0,3479.4,4.67]
[1754230970329,30.0,3479.9,3479.4,4.67]
[1754230970531,30.0,3480.1,3479.4,4.67]
[1754230971250,1.02,3480.0,3478.7,0.144]
[1754230971450,1.02,3480.0,3478.7,0.4594]
[1754230971451,40.47,3479.9,3478.7,0.4594]
[1754230971656,30.0,3479.9,3478.9,5.1287]
[1754230971985,4.677,3480.1,3479.0,0.93984389]
[1754230972140,30.0,3480.1,3479.0,0.02874389]
[1754230972329,30.0,3480.1,3479.1,0.9111]
[1754230972531,30.0,3480.3,3479.2,0.93984223]
[1754230972781,0.47,3480.4,3479.3,0.9111]
[1754230972933,0.47,3480.4,3479.4,4.676]
[1754230973134,0.47,3480.4,3479.5,0.55871]
[1754230973535,30.0,3480.3,3479.6,4.675]
[1754230973858,0.47,3480.2,3479.3,0.4594]
[1754230974058,0.47,3480.2,3479.4,4.674]
[1754230974773,30.47,3480.6,3479.5,0.4594]
[1754230975014,30.0,3480.5,3479.6,0.55851]
[1754230975895,30.0,3480.5,3479.7,4.668]
[1754230976202,0.47,3480.4,3479.6,0.55851]
[1754230976400,0.47,3480.4,3479.7,4.667]
[1754230976579,0.47,3480.4,3479.8,4.666]
[1754230976781,0.47,3480.4,3479.5,0.4594]
[1754230977269,0.47,3480.4,3479.6,4.664]
[1754230977477,0.47,3480.4,3479.5,0.4594]
[1754230977811,1.86184,3480.4,3479.6,4.664]
[1754230978109,0.47,3480.4,3479.6,4.664]
[1754230978316,0.47,3480.4,3479.7,4.661]
[1754230978697,0.47,3480.4,3479.7,0.923]
[1754230978899,0.001,3480.5,3479.8,5.61273728]
[1754230979103,0.001,3480.5,3479.9,4.66]
[1754230980277,0.4792,3480.4,3480.0,4.659]
[1754230980576,40.0,3480.1,3478.4,0.923]
[1754230980803,40.0,3479.7,3478.4,5.581]
[1754230981002,3.0,3479.4,3478.4,5.581]
[1754230981202,30.0,3479.3,3478.4,5.1104]
[1754230981372,0.4792,3479.2,3478.4,5.1104]
[1754230981573,3.0,3479.5,3478.4,5.6685]
[1754230981779,0.4792,3479.8,3478.5,0.95174802]
[1754230982110,10.4792,3479.8,3478.6,0.923]
[1754230982276,3.0,3480.3,3479.0,0.144]
[1754230982486,0.4792,3480.4,3479.2,0.144]
[1754230982690,0.4792,3480.4,3479.3,5.586]
[1754230982892,0.4792,3480.4,3479.4,4.662]
[1754230983094,0.39447,3480.3,3479.3,0.923]
[1754230983290,0.39447,3480.3,3479.4,4.662]
[1754230983991,0.39447,3480.3,3479.5,4.659]
[1754230985335,0.39447,3480.3,3479.6,4.659]
[1754230985834,0.4792,3480.2,3479.6,4.659]
[1754230986230,0.4792,3480.2,3479.3,0.4524]
[1754230986420,0.4792,3480.2,3479.4,4.652]
[1754230987235,0.4792,3480.2,3479.5,0.4524]
[1754230987835,0.39447,3480.3,3479.5,0.4524]
[1754230988019,0.39447,3480.3,3479.6,0.4706]
[1754230989348,30.0,3480.4,3479.7,0.4811381]
[1754230989643,30.0,3480.4,3479.7,0.4524]
[1754230990368,0.4792,3480.4,3479.5,0.4524]
[1754230990545,0.4792,3480.4,3479.5,1.0243]
[1754230991756,30.0,3480.4,3479.6,0.923]
[1754230992487,30.4792,3480.4,3479.6,5.561]
[1754230992771,0.4792,3480.4,3479.6,5.561]
[1754230993140,0.4792,3480.4,3479.7,4.635]
[1754230993358,1.87367,3480.4,3479.7,4.635]
[1754230993727,1.87367,3480.4,3479.8,4.635]
[1754230994240,1.87367,3480.4,3479.8,4.634]
[1754230995244,0.9437,3480.3,3479.8,4.634]
[1754230995445,0.9437,3480.3,3479.6,4.629]
[1754230995974,0.9437,3480.3,3479.2,1.067]
[1754230995975,0.4645,3480.3,3479.3,0.4524]
[1754230996131,0.4792,3480.2,3479.7,4.629]
[1754230996330,0.4792,3480.1,3479.7,4.629]
[1754230996883,0.4792,3480.1,3479.6,4.627]
[1754230997332,0.4792,3480.1,3479.6,5.0794]
[1754230997934,0.4792,3480.1,3479.6,5.55]
[1754230998362,0.4792,3480.1,3479.4,0.4524]
[1754230998675,0.4792,3480.1,3479.5,4.627]
[1754230998884,0.34655,3480.3,3479.5,4.627]
[1754230999066,30.0,3480.2,3479.5,4.627]
[1754230999449,0.4792,3480.1,3479.5,4.627]
[1754230999646,0.001,3480.4,3479.5,4.627]
[1754230999878,30.0,3480.3,3479.6,0.923]
[1754231000386,30.0,3480.3,3479.7,0.4524]
[1754231000568,30.0,3480.3,3479.7,0.923]
[1754231000749,2.86824707,3480.3,3479.7,0.923]
[1754231000934,3.001,3480.4,3479.7,0.923]
[1754231002171,0.001,3480.4,3479.1,0.144]
[1754231002332,3.4802,3480.4,3479.6,0.4524]
[1754231002546,1.69457,3480.3,3479.6,0.4524]
[1754231002969,3.001,3480.4,3479.7,0.4706]
[1754231003185,3.001,3480.4,3479.8,0.4524]
[1754231003488,3.001,3480.4,3479.9,0.4706]
[1754231003700,0.001,3480.4,3480.0,0.923]
[1754231003835,0.001,3480.4,3480.1,0.923]
[1754231004170,0.001,3480.4,3480.2,0.02873398]
[1754231004369,0.001,3480.4,3479.8,4.618]
[1754231004566,0.001,3480.4,3480.2,0.923]
[1754231005083,0.001,3480.4,3479.9,0.8163]
[1754231005245,0.001,3480.4,3480.3,0.4524]
[1754231005445,0.9437,3480.3,3479.7,0.144]
[1754231005659,0.4792,3480.2,3479.7,0.144]
[1754231005977,0.4792,3480.2,3479.3,0.4524]
[1754231005978,0.9437,3480.1,3479.3,0.4524]
[1754231006160,0.9437,3480.0,3479.2,4.618]
[1754231006346,0.4792,3479.9,3479.2,4.618]
[1754231007071,0.4792,3479.9,3478.2,0.4524]
[1754231007072,30.0,3479.8,3478.2,0.4524]
[1754231007274,0.55,3479.6,3478.2,0.4524]
[1754231007588,3.0,3479.0,3478.1,0.923]
[1754231007784,0.55,3479.6,3478.2,4.617]
[1754231007953,3.0,3479.0,3478.3,0.4706]
[1754231008137,30.0,3478.8,3478.1,4.617]
[1754231008337,0.4792,3478.7,3478.1,4.617]
[1754231008557,0.4792,3478.7,3477.7,7.054]
[1754231008786,3.0,3478.4,3477.4,0.4752]
[1754231008998,3.0,3478.3,3477.5,5.57105629]
[1754231009136,40.0,3478.4,3477.6,0.55710563]
[1754231009346,3.0,3478.5,3477.6,1.48240563]
[1754231009675,0.4792,3478.7,3477.6,1.48240563]
[1754231009676,30.0,3478.4,3477.7,0.4752]
[1754231009876,3.4789,3478.9,3477.8,0.60994056]
[1754231010057,3.4789,3478.9,3477.9,0.9253]
[1754231010440,3.4789,3478.9,3477.9,0.4501]
[1754231010640,3.0,3479.1,3478.0,0.50395215]
[1754231010874,0.4789,3479.2,3478.1,5.22849927]
[1754231011074,0.4789,3479.4,3478.2,0.9253]
[1754231011288,0.4789,3479.4,3478.3,0.9253]
[1754231011454,0.4789,3479.7,3478.4,0.9253]
[1754231011660,0.4789,3479.7,3478.5,0.9253]
[1754231011889,0.4789,3479.7,3478.6,4.622]
[1754231012046,30.0,3479.9,3478.7,0.9253]
[1754231012245,2.86824707,3479.9,3478.8,0.9253]
[1754231012501,0.4342,3480.3,3478.9,0.9253]
[1754231012710,0.4789,3480.2,3478.9,0.144]
[1754231013002,30.0,3480.0,3479.0,8.022]
[1754231013165,30.0,3479.8,3479.0,8.022]
[1754231013369,3.4789,3479.7,3479.0,8.022]
[1754231013573,40.0,3479.4,3479.0,3.401]
[1754231013770,3.0,3479.8,3479.1,0.9253]
[1754231013974,30.0,3480.3,3479.2,0.9253]
[1754231014171,0.001,3480.4,3479.3,1.81993]
[1754231014486,10.001,3480.4,3479.3,1.81993]
[1754231014670,10.4799,3480.4,3479.4,0.4752]
[1754231015183,3.0,3480.0,3479.1,5.5483]
[1754231015501,40.0,3480.0,3479.1,5.5483]
[1754231015800,30.0,3480.0,3479.1,5.5483]
[1754231016199,30.0,3480.0,3479.1,0.9253]
[1754231016429,3.0,3479.7,3479.0,4.624]
[1754231016594,30.0,3479.5,3478.9,4.622]
[1754231016975,0.4789,3479.8,3478.9,4.622]
[1754231017175,3.0,3479.7,3478.9,4.622]
[1754231017368,0.4342,3479.9,3478.6,0.144]
[1754231017369,0.9131,3479.6,3478.6,0.144]
[1754231017622,0.4789,3479.5,3478.6,0.144]
[1754231017823,0.4789,3479.5,3478.7,0.56903]
[1754231018580,0.4789,3479.5,3478.7,1.04423]
[1754231018975,0.4789,3479.4,3478.5,3.0]
[1754231019277,30.0,3479.3,3478.5,3.0]
[1754231019481,30.0,3479.3,3478.6,3.401]
[1754231019681,0.4789,3479.2,3478.6,3.401]
[1754231019877,0.4789,3479.5,3478.7,1.19463]
[1754231020081,0.4342,3479.7,3478.7,1.19463]
[1754231020082,0.4789,3479.7,3478.8,0.9253]
[1754231020872,0.4789,3479.7,3478.7,4.19463]
[1754231021018,0.4342,3479.6,3478.7,3.0]
[1754231021221,30.0,3479.4,3478.8,4.618]
[1754231021440,0.9131,3479.3,3478.5,4.618]
[1754231021667,30.0,3479.2,3478.5,4.618]
[1754231021871,0.4789,3479.3,3478.5,4.618]
[1754231021872,0.4789,3479.3,3478.5,6.3596]
[1754231022224,0.4789,3479.3,3478.5,5.0932]
[1754231022566,0.4789,3479.3,3478.6,4.618]
[1754231022936,30.0,3479.2,3478.4,3.401]
[1754231023159,40.0,3479.0,3478.4,3.401]
[1754231023360,0.4789,3478.9,3478.3,4.618]
[1754231023521,10.0,3479.8,3478.4,0.4752]
[1754231023721,30.0,3479.4,3478.5,3.8511]
[1754231023972,30.0,3479.3,3478.5,3.8511]
[1754231024260,30.0,3479.3,3478.5,3.401]
[1754231024261,0.9131,3479.3,3478.5,3.401]
[1754231024476,0.9131,3479.3,3478.1,0.144]
[1754231024477,30.4789,3479.2,3478.3,4.618]
[1754231024777,3.0,3478.8,3478.1,3.401]
[1754231024976,40.4789,3478.7,3478.1,3.401]
[1754231025281,30.0,3478.6,3478.1,3.401]
[1754231025584,30.0,3478.5,3477.9,4.618]
[1754231025883,30.0,3478.4,3477.8,4.618]
[1754231026226,30.0,3478.4,3477.4,0.4501]
[1754231026227,30.0,3478.4,3477.3,4.618]
[1754231026468,0.4342,3478.5,3477.4,0.4501]
[1754231026469,5.0969,3478.3,3477.4,0.4501]
[1754231026625,0.4789,3478.3,3477.4,0.9253]
[1754231027336,0.4789,3479.2,3477.5,0.95405629]
[1754231027646,30.0,3479.2,3478.0,0.144]
[1754231027894,3.0,3479.1,3478.1,5.5443]
[1754231028096,30.0,3479.2,3478.2,0.4752]
[1754231028281,0.4789,3479.1,3478.2,3.8762]
[1754231029492,40.0,3478.8,3478.2,8.02]
[1754231029708,30.0,3478.8,3478.2,8.02]
[1754231030094,7.619,3479.2,3478.3,0.9253]
[1754231030346,3.0,3479.2,3478.3,1.83423]
[1754231030700,30.0,3479.8,3478.4,4.3263]
[1754231031040,30.0,3479.6,3478.5,4.3263]
[1754231031337,30.0,3479.6,3478.6,5.11030918]
[1754231031338,3.0,3479.5,3478.6,5.11030918]
[1754231031544,3.0,3479.5,3478.4,0.144]
[1754231031755,3.0,3479.2,3477.8,4.619]
[1754231031936,3.0,3479.2,3478.4,3.401]
[1754231032135,10.4789,3479.4,3478.4,8.02]
[1754231032305,3.0,3479.3,3478.5,0.89453]
[1754231032653,10.4789,3479.4,3478.5,0.89453]
[1754231032798,0.4789,3479.2,3478.4,4.619]
[1754231033001,0.4789,3479.2,3478.0,0.9253]
[1754231033431,0.4789,3479.2,3478.1,4.619]
[1754231033634,0.4789,3479.2,3478.1,5.17343]
[1754231034261,0.4789,3479.2,3478.1,0.55443]
[1754231034432,3.0,3478.8,3477.7,3.401]
[1754231034632,3.0,3478.8,3478.1,4.619]
[1754231034831,0.4789,3478.9,3478.1,4.619]
[1754231035129,2.33211,3478.9,3478.1,4.619]
[1754231035331,0.4789,3478.9,3478.1,5.5443]
[1754231036135,4.619,3479.2,3478.2,0.9253]
[1754231036136,3.0,3479.2,3478.2,0.9253]
[1754231036321,3.0,3479.2,3478.3,0.4752]
[1754231036527,3.0,3479.2,3478.4,0.50942]
[1754231036738,4.619,3479.5,3478.5,0.9253]
[1754231036925,30.0,3479.6,3478.6,0.9253]
[1754231037103,30.4789,3479.6,3478.6,0.9253]
[1754231037304,3.0,3479.4,3478.7,0.4752]
[1754231037517,3.0,3479.4,3478.8,0.89453]
[1754231037715,3.0,3479.4,3478.8,4.29553]
[1754231037935,3.0,3479.4,3478.9,0.9253]
[1754231038137,3.0,3479.4,3478.8,0.89453]
[1754231038443,3.0,3479.4,3479.0,0.9253]
[1754231038644,3.0,3479.4,3479.1,0.475]
[1754231038937,3.0,3479.7,3479.2,0.475]
[1754231039159,3.0,3479.7,3479.2,0.9401]
[1754231039511,3.4789,3479.9,3479.2,0.9401]
[1754231039838,0.85331,3479.8,3479.2,0.9401]
[1754231040552,30.0,3480.0,3479.2,0.9401]
[1754231040730,3.0,3479.9,3479.2,0.9401]
[1754231042258,3.4893,3480.1,3478.9,0.144]
[1754231042463,40.0,3479.7,3478.3,5.5581]
[1754231042613,34.618,3479.7,3478.3,5.5581]
[1754231042811,3.0,3479.3,3478.4,4.618]
[1754231043042,40.0,3479.2,3478.4,4.618]
[1754231043240,30.0,3479.2,3478.5,1.5823318]
[1754231043413,40.0,3479.3,3478.5,1.5823318]
[1754231043613,0.4883,3479.4,3478.5,1.5823318]
[1754231043810,10.0,3479.9,3478.6,0.96884719]
[1754231044140,30.0,3480.0,3478.7,5.5581]
[1754231044328,3.0,3479.9,3478.8,0.4651]
[1754231044522,3.4893,3480.1,3478.9,0.50831]
[1754231044738,3.4893,3480.1,3479.0,0.475]
[1754231045111,3.0,3479.9,3479.0,0.475]
[1754231045449,0.4893,3480.1,3479.0,0.475]
[1754231045653,0.001,3480.1,3479.1,5.0821]
[1754231045815,0.001,3480.1,3479.2,1.49581]
[1754231046423,0.001,3480.1,3479.2,0.55571]
[1754231046621,0.001,3480.1,3479.3,0.9401]
[1754231047053,0.001,3480.1,3479.4,0.9401]
[1754231047551,0.001,3480.1,3479.6,0.55]
[1754231047848,0.001,3480.1,3479.7,6.79425457]
[1754231048056,0.001,3480.1,3479.7,7.73435457]
[1754231048345,0.001,3480.1,3479.8,1.4901]
[1754231048513,0.001,3480.1,3479.9,4.617]
[1754231048714,0.001,3480.1,3480.0,4.617]
[1754231049049,0.001,3480.1,3480.0,6.38553546]
[1754231049750,0.001,3480.1,3480.0,1.76853546]
[1754231049944,0.001,3480.1,3480.0,5.5571]
[1754231050147,0.001,3480.1,3480.0,0.9401]
[1754231050376,0.001,3480.1,3480.0,5.5571]
[1754231050747,0.001,3480.1,3480.0,0.9401]
[1754231051273,0.001,3480.1,3480.0,5.5561]
[1754231051476,0.001,3480.1,3480.0,5.17161]
[1754231051975,0.001,3480.1,3480.0,8.57261]
[1754231052148,0.001,3480.1,3480.0,3.95661]
[1754231052354,0.001,3480.1,3480.0,8.57261]
[1754231053442,0.001,3480.1,3480.0,9.51271]
[1754231054758,0.001,3480.1,3480.0,9.65671]
[1754231055786,0.001,3480.1,3480.0,9.65571]
[1754231055983,0.001,3480.1,3480.0,4.10061]
[1754231056155,0.001,3480.1,3480.0,8.016]
[1754231056568,0.001,3480.1,3480.0,3.401]
[1754231056750,0.9554,3480.1,3480.0,4.615]
[1754231057067,0.001,3480.1,3480.0,4.615]
[1754231057585,0.001,3480.1,3480.0,6.49384563]
[1754231057748,0.001,3480.1,3480.0,10.01011]
[1754231057956,0.001,3480.1,3480.0,5.39511]
[1754231058189,0.001,3480.1,3480.0,9.1001]
[1754231058854,0.001,3480.1,3480.0,4.4851]
[1754231059051,0.001,3480.1,3480.0,5.6991]
[1754231059858,0.001,3480.1,3480.0,4.759]
[1754231060463,0.001,3480.1,3480.0,4.615]
[1754231061613,0.001,3480.1,3480.0,5.5515]
[1754231061801,0.001,3480.1,3480.0,6.0166]
[1754231062296,0.001,3480.1,3480.0,1.4016]
[1754231062603,0.001,3480.1,3480.0,5.6981]
[1754231063311,0.001,3480.4,3480.1,0.55]
[1754231063460,0.001,3480.4,3480.3,3.55]
[1754231063658,0.001,3480.4,3480.3,8.308]
[1754231063898,0.001,3480.4,3480.3,12.11634707]
[1754231064496,0.4883,3481.8,3480.3,12.11634707]
[1754231064802,0.4893,3482.2,3480.5,0.55]
[1754231065011,0.4893,3482.2,3480.8,0.694]
[1754231065542,0.4893,3482.2,3480.8,1.6341]
[1754231065730,0.4893,3482.2,3480.8,2.25891]
[1754231066141,0.4883,3482.0,3480.8,2.25891]
[1754231066312,0.4661,3482.1,3480.8,6.2471]
[1754231066505,0.4883,3481.8,3480.8,6.2471]
[1754231068811,0.4755,3482.1,3480.8,6.2471]
[1754231069011,0.4755,3481.9,3480.8,6.2471]
[1754231069957,0.4755,3481.9,3481.1,3.4]
[1754231070260,0.4755,3481.9,3481.3,0.144]